bitfinex-derivatives/quotes_ETHF0:USTF0_20241231
["timestamp","ask_amount","ask_price","bid_price","bid_amount"]
[1735683177099,1.61012498,3343.8,3343.7,0.29962]
[1735683177795,0.2996,3343.9,3343.8,0.2996]
[1735683177997,1.15971498,3343.9,3343.8,0.2996]
[1735683182200,1.15971498,3343.9,3343.8,0.7199]
[1735683182801,1.15971498,3343.9,3343.8,5.41284887]
[1735683183996,2.35512211,3344.2,3344.1,0.29958]
[1735683184201,2.65470211,3344.2,3344.1,0.29958]
[1735683185001,0.29958,3344.2,3344.1,0.29958]
[1735683185297,0.86011498,3344.2,3344.0,4.69294887]
[1735683185498,2.49209498,3344.1,3344.0,4.69294887]
[1735683186502,0.29962,3343.7,3343.6,4.69294887]
[1735683186997,0.29961,3343.8,3343.7,0.29962]
[1735683188805,2.65664505,3343.8,3343.7,5.72000244]
[1735683190096,0.29961,3343.8,3343.7,12.75942575]
[1735683190805,0.86011498,3343.8,3343.7,12.75942575]
[1735683191200,0.86011498,3343.8,3343.7,5.72000244]
[1735683192504,0.86011498,3343.8,3343.7,15.10568828]
[1735683194308,1.15972498,3343.8,3343.7,15.10568828]
[1735683195404,1.15972498,3343.8,3343.7,14.80606828]
[1735683196394,1.15972498,3343.8,3343.7,5.42038244]
[1735683197905,4.69513587,3343.8,3343.7,4.69830411]
[1735683198908,4.69513587,3343.8,3343.7,4.99792411]
[1735683200003,4.69513587,3343.8,3343.7,4.69830411]
[1735683200199,1.15972498,3343.8,3343.7,5.54337204]
[1735683201012,4.39552587,3343.8,3343.6,7.34707617]
[1735683201308,0.73842,3343.7,3343.6,7.34707617]
[1735683202410,3.09661637,3343.7,3343.6,12.89083291]
[1735683202912,3.09661637,3343.7,3343.6,12.59121291]
[1735683204111,3.09661637,3343.7,3343.6,5.54375674]
[1735683205307,0.73842,3343.7,3343.6,5.54375674]
[1735683206513,0.73842,3343.7,3343.6,5.84338674]
[1735683208017,0.73842,3343.7,3343.6,5.54375674]
[1735683208714,0.73842,3343.7,3343.6,5.84338674]
[1735683209014,0.73842,3343.7,3343.6,6.26688674]
[1735683209015,3.09638803,3343.7,3343.6,6.26688674]
[1735683209218,3.09638803,3343.7,3343.6,5.96725674]
[1735683210810,3.09638803,3343.7,3343.6,6.26688674]
[1735683211415,3.09638803,3343.7,3343.6,5.96725674]
[1735683211612,3.09638803,3343.7,3343.6,6.26688674]
[1735683212613,3.09638803,3343.7,3343.6,5.96725674]
[1735683212815,3.09638803,3343.7,3343.6,6.26688674]
[1735683214518,3.09638803,3343.7,3343.6,5.96725674]
[1735683215116,3.09638803,3343.7,3343.6,6.26688674]
[1735683215320,3.09638803,3343.7,3343.6,5.96725674]
[1735683217217,3.95650301,3343.7,3343.6,5.96725674]
[1735683220523,1.59853498,3343.7,3343.6,13.01471291]
[1735683221726,3.95650301,3343.7,3343.6,5.96725674]
[1735683223220,3.95650301,3343.7,3343.6,13.01471291]
[1735683223924,3.95650301,3343.7,3343.6,12.59121291]
[1735683224727,3.95650301,3343.7,3343.6,4.69676292]
[1735683225826,0.29963,3343.6,3343.5,7.04745617]
[1735683226024,0.73223,3343.6,3343.5,7.04745617]
[1735683227127,3.09019803,3343.6,3343.5,12.59146655]
[1735683228627,3.09019803,3343.6,3343.5,4.69932544]
[1735683229924,0.29964,3343.5,3343.4,4.69932544]
[1735683230123,1.15975498,3343.5,3343.4,4.69932544]
[1735683231137,0.29965,3343.4,3343.3,5.12502544]
[1735683231622,0.29965,3343.4,3343.3,4.69932544]
[1735683232129,0.72395,3343.4,3343.3,4.69932544]
[1735683232426,3.08189046,3343.4,3343.3,4.69932544]
[1735683234623,0.72395,3343.4,3343.3,4.69932544]
[1735683236031,0.29965,3343.3,3343.2,4.69932544]
[1735683236231,1.59526498,3343.3,3343.2,4.69932544]
[1735683237328,3.95267292,3343.3,3343.2,4.69932544]
[1735683239730,3.95267292,3343.3,3343.2,4.99898544]
[1735683240529,2.35740794,3343.3,3343.2,4.99898544]
[1735683242936,5.55534671,3343.6,3343.2,4.99898544]
[1735683242937,0.86011498,3343.6,3343.5,0.29964]
[1735683244037,2.35740794,3343.7,3343.6,0.29963]
[1735683244332,2.35740794,3343.7,3343.6,0.73683]
[1735683244733,2.35740794,3343.7,3343.6,3.94463]
[1735683244935,2.35740794,3343.8,3343.6,16.20435499]
[1735683245130,3.21752292,3343.8,3343.7,0.29962]
[1735683245331,3.21752292,3343.8,3343.7,0.72142]
[1735683246339,0.86011498,3343.8,3343.7,26.65997876]
[1735683246837,1.15972498,3343.8,3343.7,25.93855876]
[1735683247338,0.29961,3343.8,3343.7,26.23817876]
[1735683247637,1.15972498,3343.8,3343.7,26.23817876]
[1735683247840,1.15972498,3343.8,3343.7,14.38232026]
[1735683248036,1.15972498,3343.8,3343.7,4.99361752]
[1735683249133,1.15972498,3343.8,3343.7,0.29962]
[1735683250234,1.15972498,3343.8,3343.7,5.81793269]
[1735683252538,1.15972498,3343.8,3343.7,4.99414212]
[1735683253735,1.15972498,3343.8,3343.7,0.29962]
[1735683255342,2.35740794,3344.0,3343.7,12.53406138]
[1735683255537,3.21752292,3344.0,3343.9,0.2996]
[1735683255742,2.35740794,3344.0,3343.9,0.2996]
[1735683256841,0.86011498,3344.3,3344.0,1.04855]
[1735683257037,0.86011498,3344.3,3344.2,0.29957]
[1735683257635,0.86011498,3344.3,3344.2,0.73477]
[1735683258343,0.86011498,3344.3,3344.2,5.42447074]
[1735683259542,0.86011498,3344.3,3344.2,13.25676833]
[1735683261647,0.86011498,3344.3,3344.2,6.22221722]
[1735683262940,0.86011498,3344.3,3344.2,10.90727838]
[1735683264446,0.86011498,3344.3,3344.2,5.41983116]
[1735683265543,0.86011498,3344.3,3344.2,0.73477]
[1735683267842,0.86011498,3344.5,3344.3,0.74892]
[1735683268237,0.86011498,3344.5,3344.4,0.29956]
[1735683268443,1.15966498,3344.5,3344.4,0.29956]
[1735683270145,0.86011498,3344.5,3344.4,0.29956]
[1735683270547,0.4592,3344.6,3344.5,0.29955]
[1735683270936,3.2078,3345.0,3344.5,0.86011498]
[1735683271142,2.35740794,3345.1,3345.0,0.2995]
[1735683271343,3.51701292,3345.1,3345.0,0.2995]
[1735683272044,1.15960498,3345.1,3345.0,0.2995]
[1735683273848,0.29952,3344.9,3344.8,0.29951]
[1735683274055,1.15963498,3344.9,3344.8,0.29951]
[1735683278549,0.4564,3345.2,3344.8,0.86011498]
[1735683278747,0.4564,3345.2,3345.1,0.29949]
[1735683279254,1.31651498,3345.2,3344.9,0.9097]
[1735683279444,0.29953,3344.8,3344.7,0.29952]
[1735683279644,0.29954,3344.7,3344.6,0.29954]
[1735683279951,1.63004,3344.7,3344.6,4.98460116]
[1735683280954,1.63004,3344.7,3344.6,0.29954]
[1735683283261,0.29955,3344.6,3344.5,0.29954]
[1735683283461,1.15966498,3344.6,3344.5,0.29954]
[1735683284255,0.86011498,3344.6,3344.5,0.29954]
[1735683286150,1.15965498,3344.6,3344.5,0.29954]
[1735683289256,0.86011498,3344.6,3344.5,0.29954]
[1735683290460,0.86011498,3344.6,3344.5,0.72464]
[1735683291056,1.63003,3344.7,3344.6,0.29954]
[1735683291258,1.3305,3344.7,3344.6,0.29954]
[1735683292667,2.35740794,3345.1,3344.6,0.29954]
[1735683292668,3.21752292,3345.2,3345.1,0.29949]
[1735683294266,2.35740794,3345.2,3345.1,0.29949]
[1735683294667,1.18657,3345.4,3345.3,0.29947]
[1735683296566,0.8871,3345.4,3345.3,0.29947]
[1735683296765,3.2078,3345.5,3345.4,0.29947]
[1735683298871,2.35740794,3345.7,3345.3,4.0556]
[1735683299065,2.35740794,3345.7,3345.6,0.29945]
[1735683300958,0.79740794,3345.7,3345.6,2.11629452]
[1735683301165,3.53675198,3346.2,3345.6,6.81684452]
[1735683301368,3.53675198,3346.2,3346.1,0.2994]
[1735683301767,3.53675198,3346.2,3346.1,1.1823]
[1735683302471,2.93325198,3346.2,3346.1,7.3703]
[1735683302671,0.4528,3347.0,3346.1,19.63009132]
[1735683302873,0.4528,3347.0,3346.9,0.29933]
[1735683304262,0.8927,3347.3,3346.7,4.67365472]
[1735683304570,0.4625,3347.4,3347.3,0.2993]
[1735683307974,0.4625,3347.4,3346.9,3.95613]
[1735683308276,0.4625,3347.4,3346.9,3.2078]
[1735683308474,0.4625,3347.4,3347.3,0.2993]
[1735683309178,0.76179,3347.4,3347.3,0.2993]
[1735683310473,0.29931,3347.2,3347.1,0.29931]
[1735683311177,2.27554452,3347.3,3346.9,3.50713]
[1735683311178,0.29932,3347.0,3346.9,3.50713]
[1735683312475,0.29932,3347.0,3346.9,3.2078]
[1735683312684,2.11616452,3347.0,3346.9,2.5072]
[1735683312975,2.11616452,3347.0,3346.9,1.8066]
[1735683313377,5.02464452,3347.0,3346.6,0.29935]
[1735683313574,2.11619452,3346.7,3346.6,0.29935]
[1735683313776,1.81684452,3346.7,3346.1,3.2078]
[1735683314075,0.29939,3346.2,3346.1,3.5072]
[1735683314776,0.73349,3346.3,3346.2,0.29939]
[1735683314975,0.4341,3346.3,3346.2,0.29939]
[1735683315371,0.73349,3346.3,3346.2,0.29939]
[1735683315573,0.4341,3346.3,3346.2,0.29939]
[1735683319486,0.73349,3346.3,3346.2,0.29939]
[1735683324789,0.4341,3346.3,3345.8,0.74856]
[1735683324976,0.29944,3345.8,3345.7,0.29943]
[1735683325182,2.11628452,3345.8,3345.7,0.29943]
[1735683325387,0.4295,3346.0,3345.4,3.2078]
[1735683325683,0.29944,3345.8,3345.7,0.29943]
[1735683326489,0.29945,3345.7,3345.6,0.29944]
[1735683329084,0.29947,3345.5,3345.4,0.29946]
[1735683330391,0.4254,3345.6,3345.4,0.29946]
[1735683330585,0.72486,3345.6,3345.5,0.29946]
[1735683331092,0.29943,3345.9,3345.8,0.29942]
[1735683331287,0.4295,3346.0,3345.9,0.29942]
[1735683331492,0.72891,3346.0,3345.9,0.29942]
[1735683331696,1.17451,3346.0,3345.9,0.29942]
[1735683334695,0.8751,3346.0,3345.2,0.4567]
[1735683334897,0.29947,3345.5,3345.4,0.29945]
[1735683338294,1.81684452,3345.8,3345.2,0.4567]
[1735683338594,0.72997,3345.4,3345.3,0.29947]
[1735683339000,0.72997,3345.4,3344.9,4.67365472]
[1735683339001,1.3174,3345.4,3344.9,4.67365472]
[1735683339190,1.81684452,3345.2,3344.9,4.67365472]
[1735683339392,1.81684452,3345.2,3345.0,0.2995]
[1735683339393,0.2995,3345.1,3345.0,0.2995]
[1735683342397,2.11633452,3345.2,3345.1,0.29949]
[1735683342600,0.29949,3345.2,3345.1,0.29949]
[1735683345398,0.29948,3345.3,3345.2,0.29947]
[1735683350205,3.2078,3345.5,3345.4,0.29947]
[1735683351306,2.54349452,3345.6,3345.5,0.29946]
[1735683351608,2.24404452,3345.6,3345.5,0.29946]
[1735683359110,0.4272,3345.6,3345.5,0.29946]
[1735683360111,0.4272,3345.6,3345.5,5.86729294]
[1735683360418,3.2078,3345.7,3345.6,0.29945]
[1735683361615,3.2078,3345.7,3345.6,4.99441332]
[1735683365121,3.2078,3345.7,3345.6,0.29945]
[1735683365721,0.4643,3345.8,3345.7,0.29944]
[1735683366319,0.29945,3345.7,3345.6,4.99441332]
[1735683366715,0.76374,3345.8,3345.7,0.29944]
[1735683366920,0.29944,3345.7,3345.6,4.99440332]
[1735683367119,0.76374,3345.8,3345.7,0.29944]
[1735683370028,0.4643,3345.8,3345.5,4.69496332]
[1735683370220,0.29945,3345.7,3345.6,0.29944]
[1735683371819,3.50725,3345.7,3345.6,0.29944]
[1735683374121,3.2078,3345.7,3345.5,4.69496332]
[1735683374317,2.11629452,3345.6,3345.5,4.99441332]
[1735683376020,2.11629452,3345.6,3345.5,4.69496332]
[1735683376828,0.29946,3345.5,3345.4,4.69496332]
[1735683377029,0.74956,3345.5,3345.4,4.69496332]
[1735683377229,0.74956,3345.5,3345.4,4.99443332]
[1735683378025,0.74956,3345.5,3345.4,0.29947]
[1735683378328,0.29947,3345.4,3345.3,4.99443332]
[1735683378624,1.22747,3345.4,3345.3,4.99443332]
[1735683378825,1.22747,3345.4,3345.3,0.29947]
[1735683379431,0.928,3345.4,3345.2,4.69496332]
[1735683379628,2.11631452,3345.3,3345.2,4.99444332]
[1735683379927,5.32411452,3345.3,3345.2,4.69496332]
[1735683380231,4.36758257,3345.3,3345.2,4.69496332]
[1735683380834,5.22789514,3345.3,3345.2,4.69496332]
[1735683381329,0.29949,3345.1,3345.0,4.69496332]
[1735683381728,1.15980257,3345.1,3345.0,4.69496332]
[1735683382234,2.11683513,3345.1,3345.0,4.69496332]
[1735683382622,2.11683513,3345.1,3345.0,0.2995]
[1735683382822,1.81734513,3345.1,3345.0,0.2995]
[1735683383225,2.11683513,3345.1,3345.0,0.2995]
[1735683383533,6.73436882,3345.3,3344.9,4.69496332]
[1735683383827,7.03384882,3345.3,3345.2,0.29948]
[1735683384035,3.50728,3345.3,3345.2,0.29948]
[1735683384229,0.29948,3345.3,3345.2,0.29948]
[1735683385427,0.29948,3345.3,3345.2,12.89698439]
[1735683387334,2.74534513,3345.4,3345.2,12.59750439]
[1735683387535,2.74534513,3345.4,3345.3,0.29947]
[1735683387737,0.29945,3345.6,3345.5,0.29945]
[1735683388531,6.73436882,3345.7,3345.3,0.4581]
[1735683388750,6.73436882,3345.7,3345.6,0.29945]
[1735683389035,3.2078,3345.7,3345.6,0.29945]
[1735683390334,3.50724,3345.7,3345.6,0.29945]
[1735683390633,3.50724,3345.7,3345.6,12.89695439]
[1735683393943,3.50724,3345.7,3345.6,5.86240328]
[1735683396141,3.50724,3345.7,3345.6,12.89695439]
[1735683398442,3.50724,3345.7,3345.6,5.86240328]
[1735683400143,3.50724,3345.7,3345.6,12.89695439]
[1735683402051,3.50724,3345.7,3345.6,5.00481327]
[1735683404341,3.50724,3345.7,3345.6,4.70536327]
[1735683404548,3.50724,3345.7,3345.6,5.85263035]
[1735683405549,3.2078,3345.7,3345.6,5.85263035]
[1735683405748,3.50724,3345.7,3345.6,5.85263035]
[1735683406849,3.50724,3345.7,3345.6,12.88718146]
[1735683407251,3.2078,3345.7,3345.6,12.88718146]
[1735683409451,3.2078,3345.7,3345.6,5.85263035]
[1735683409648,3.50724,3345.7,3345.6,5.85263035]
[1735683410247,3.2078,3345.7,3345.6,5.85263035]
[1735683410844,3.6496,3345.7,3345.6,5.85263035]
[1735683411045,4.0867,3345.7,3345.6,5.85263035]
[1735683411648,0.8789,3345.7,3345.6,5.85263035]
[1735683411848,0.8789,3345.7,3345.6,12.90986238]
[1735683413545,1.81734513,3346.3,3345.6,26.04473301]
[1735683413753,2.11673513,3346.3,3346.2,0.29939]
[1735683415960,0.29939,3346.2,3346.1,4.70237202]
[1735683416161,0.29939,3346.2,3346.1,5.00177202]
[1735683417258,0.29939,3346.2,3346.1,4.70237202]
[1735683417555,0.29939,3346.2,3346.1,0.2994]
[1735683417759,0.2994,3346.1,3346.0,5.00178202]
[1735683418054,0.7629,3346.1,3346.0,5.00178202]
[1735683418653,0.7629,3346.1,3346.0,4.70237202]
[1735683420454,0.29943,3345.8,3345.7,5.00181202]
[1735683421767,2.25094513,3345.9,3345.6,4.70237202]
[1735683422058,0.75814,3345.7,3345.6,4.70237202]
[1735683422453,0.75814,3345.7,3345.6,5.00182202]
[1735683422758,0.75814,3345.7,3345.6,4.70237202]
[1735683423662,0.75814,3345.7,3345.5,0.29945]
[1735683423663,0.29945,3345.6,3345.5,0.29945]
[1735683424857,0.29945,3345.6,3345.5,5.00182202]
[1735683426361,0.29945,3345.6,3345.5,4.70237202]
[1735683427660,0.29945,3345.6,3345.5,5.00183202]
[1735683429564,0.29945,3345.6,3345.5,4.70237202]
[1735683429867,0.29945,3345.6,3345.5,5.84597631]
[1735683430967,2.81155948,3345.7,3345.5,5.54651631]
[1735683431170,3.11100948,3345.7,3345.6,0.29945]
[1735683431868,0.29945,3345.6,3345.5,12.89952434]
[1735683432662,0.29945,3345.6,3345.5,0.29945]
[1735683433772,0.29945,3345.6,3345.5,5.84839984]
[1735683434666,2.11679513,3345.6,3345.5,5.54894984]
[1735683434861,2.11679513,3345.6,3345.5,5.84840984]
[1735683435068,2.11679513,3345.6,3345.5,12.90162604]
[1735683436166,2.11679513,3345.6,3345.5,12.60216604]
[1735683436366,4.46965461,3345.6,3345.5,5.54894984]
[1735683437469,4.46965461,3345.6,3345.5,5.84840984]
[1735683438274,4.46965461,3345.6,3345.5,5.54894984]
[1735683438778,4.17020461,3345.6,3345.5,4.70209133]
[1735683438966,4.70751414,3345.6,3345.5,2.44119133]
[1735683439666,10.0710869,3345.6,3345.5,1.74029133]
[1735683439871,9.83322737,3345.6,3345.5,1.74029133]
[1735683440176,4.46965461,3345.6,3345.5,1.74029133]
[1735683440472,0.2995,3345.0,3344.9,7.0532162]
[1735683440678,0.29952,3344.8,3344.7,9.38870274]
[1735683440876,3.50732,3344.8,3344.7,9.38870274]
[1735683442077,3.96282,3344.8,3344.7,9.38870274]
[1735683442279,3.6633,3344.8,3344.1,0.29958]
[1735683442486,2.11691513,3344.2,3344.1,0.29958]
[1735683442979,0.29958,3344.1,3344.0,0.75449]
[1735683443574,1.81734513,3344.5,3344.4,0.29955]
[1735683443877,2.11689513,3344.5,3344.4,0.29955]
[1735683444971,1.81734513,3344.5,3344.4,0.29955]
[1735683446187,4.16963452,3344.9,3344.4,3.2078]
[1735683446369,4.16963452,3344.9,3344.8,0.29952]
[1735683446674,4.46914452,3344.9,3344.8,0.29952]
[1735683446872,0.29953,3344.8,3344.7,0.29952]
[1735683448475,2.11686513,3344.9,3344.8,0.29952]
[1735683457479,1.81734513,3344.9,3344.5,0.8871]
[1735683457680,0.29957,3344.2,3344.1,9.38870274]
[1735683457880,2.11691513,3344.2,3344.1,10.15038274]
[1735683458986,2.11691513,3344.2,3344.1,0.76168]
[1735683460589,0.29957,3344.2,3344.1,0.76168]
[1735683464892,0.29957,3344.2,3343.9,3.6453]
[1735683464893,1.81734513,3344.2,3343.9,3.2078]
[1735683465193,0.29959,3344.0,3343.9,3.50739]
[1735683467889,0.29959,3344.0,3343.9,0.29959]
[1735683468095,0.29959,3344.0,3343.8,0.4263]
[1735683468096,0.2996,3343.9,3343.8,0.29961]
[1735683468298,0.2996,3343.9,3343.7,0.29961]
[1735683468299,0.29962,3343.8,3343.7,0.29961]
[1735683468601,0.29962,3343.7,3343.6,3.94382]
[1735683468792,0.74542,3343.7,3343.6,3.94382]
[1735683469400,0.74542,3343.7,3343.6,3.2078]
[1735683469595,0.29965,3343.4,3343.3,0.29964]
[1735683469902,0.29965,3343.3,3343.2,3.2078]
[1735683470104,1.19385,3343.3,3343.2,3.2078]
[1735683470296,1.19385,3343.3,3343.2,3.50746]
[1735683470897,1.19385,3343.3,3343.2,0.29966]
[1735683474102,1.64665,3343.3,3343.2,0.29966]
[1735683475802,1.347,3343.3,3343.2,0.29966]
[1735683476005,1.64665,3343.3,3343.2,0.29966]
[1735683477299,3.50743,3343.6,3343.5,0.29964]
[1735683477504,0.29963,3343.6,3343.5,0.29964]
[1735683478704,1.81734513,3343.7,3343.6,0.29963]
[1735683479003,1.20761,3343.9,3343.8,0.29961]
[1735683479503,0.908,3343.9,3343.3,0.4242]
[1735683479704,2.11695513,3343.8,3343.7,0.29961]
[1735683484105,2.11695513,3343.8,3343.5,0.4232]
[1735683484106,0.29962,3343.7,3343.6,0.29962]
[1735683484909,1.81734513,3343.8,3343.5,0.4232]
[1735683485113,0.29966,3343.3,3343.2,0.29966]
[1735683485415,0.29966,3343.3,3343.2,0.72936]
[1735683485708,0.29966,3343.3,3342.9,0.4638]
[1735683486016,1.81734513,3343.5,3342.6,0.7493]
[1735683486017,2.11701513,3343.1,3343.0,0.8651]
[1735683486217,0.4637,3343.2,3343.0,0.8651]
[1735683486411,0.76337,3343.2,3343.1,0.29967]
[1735683487011,0.29967,3343.2,3343.1,0.29967]
[1735683487214,0.29966,3343.3,3343.2,0.29965]
[1735683491322,0.29966,3343.3,3342.3,12.59650274]
[1735683491323,1.187,3343.3,3342.3,12.59650274]
[1735683491618,0.29975,3342.2,3342.1,9.07808976]
[1735683491813,1.48675,3342.2,3342.1,9.07808976]
[1735683492118,6.48675,3342.2,3342.1,9.07808976]
[1735683492419,6.48675,3342.2,3342.1,7.81515976]
[1735683492814,0.29984,3341.2,3341.1,3.2078]
[1735683494219,2.11718513,3341.2,3341.1,3.2078]
[1735683494628,0.29989,3340.7,3340.6,0.29989]
[1735683494922,1.81734513,3341.2,3340.6,0.76099]
[1735683495120,0.29989,3340.7,3340.6,0.4611]
[1735683497323,0.29991,3340.4,3340.3,0.4475]
[1735683498519,0.29991,3340.4,3340.3,0.74742]
[1735683500920,0.29991,3340.5,3340.3,0.74742]
[1735683501119,0.29991,3340.5,3340.3,0.4475]
[1735683501327,0.29991,3340.5,3340.4,0.29991]
[1735683504229,0.29988,3340.8,3340.7,0.29989]
[1735683504422,0.29989,3340.7,3340.6,0.29989]
[1735683506428,5.02514513,3340.9,3340.3,0.4475]
[1735683506625,0.29991,3340.5,3340.4,0.29991]
[1735683506826,1.81734513,3340.6,3340.3,0.4475]
[1735683507027,2.11724513,3340.6,3340.5,0.29991]
[1735683507227,0.2999,3340.6,3340.5,0.29991]
[1735683509534,0.2999,3340.7,3340.6,0.29989]
[1735683511435,0.2999,3340.6,3340.5,0.2999]
[1735683512838,0.29991,3340.5,3340.4,0.29991]
[1735683515538,5.77484513,3340.9,3340.3,0.74741]
[1735683515539,0.29991,3340.4,3340.3,0.74741]
[1735683517239,0.29991,3340.4,3340.3,0.4475]
[1735683517441,0.29992,3340.3,3340.2,0.29993]
[1735683520239,0.29994,3340.2,3340.1,0.29993]
[1735683520942,0.29994,3340.2,3340.0,0.4312]
[1735683521244,0.29994,3340.2,3340.1,0.29994]
[1735683522242,0.499,3340.1,3338.6,7.00717351]
[1735683522444,1.81734513,3339.1,3338.6,7.00717351]
[1735683522946,0.30007,3338.7,3338.6,7.00717351]
[1735683523150,1.81734513,3339.1,3338.6,7.00717351]
[1735683523335,1.81734513,3339.1,3338.6,7.30724351]
[1735683523541,0.30006,3338.8,3338.7,0.30007]
[1735683524156,1.81734513,3339.1,3338.7,0.4634]
[1735683524345,0.30004,3339.0,3338.9,0.30004]
[1735683524654,1.81734513,3339.1,3339.0,0.30004]
[1735683524855,3.2078,3339.3,3338.8,0.4552]
[1735683525156,1.81734513,3339.1,3338.9,0.30004]
[1735683525351,2.11738513,3339.1,3338.8,0.4552]
[1735683525555,2.11738513,3339.1,3339.0,0.30004]
[1735683525756,1.81734513,3339.1,3339.0,0.30004]
[1735683526450,0.30002,3339.2,3338.9,0.30005]
[1735683526648,0.30002,3339.2,3339.1,0.30003]
[1735683528857,0.30004,3339.1,3339.0,0.30003]
[1735683531155,2.11738513,3339.1,3339.0,0.30003]
[1735683531952,0.30005,3339.0,3338.9,0.30004]
[1735683532354,0.30005,3338.9,3338.8,0.4552]
[1735683532659,0.30005,3338.9,3338.8,0.75526]
[1735683532965,0.30005,3338.9,3338.8,0.4552]
[1735683533258,0.30008,3338.6,3338.5,3.50788]
[1735683534758,0.30008,3338.6,3338.5,3.2078]
[1735683535151,0.30008,3338.6,3338.5,3.50788]
[1735683535651,0.30008,3338.6,3338.5,3.2078]
[1735683536757,0.30008,3338.6,3338.5,3.50788]
[1735683536954,0.30008,3338.6,3338.5,3.2078]
[1735683537154,0.30008,3338.6,3338.5,3.50788]
[1735683537757,0.30008,3338.6,3338.5,0.30008]
[1735683540165,1.81734513,3338.7,3338.2,3.6539]
[1735683540364,0.3001,3338.3,3338.2,3.95401]
[1735683540568,0.3001,3338.4,3338.3,0.30009]
[1735683540865,1.81734513,3338.7,3338.2,3.2078]
[1735683541061,2.11744513,3338.3,3338.2,3.2078]
[1735683541965,2.11744513,3338.3,3338.2,3.6565]
[1735683543361,2.11744513,3338.3,3338.2,3.95661]
[1735683543668,1.81734513,3338.6,3338.2,3.6565]
[1735683543863,1.81734513,3338.6,3338.5,0.30008]
[1735683544365,0.3001,3338.4,3338.3,0.3001]
[1735683544766,1.81734513,3338.6,3338.2,3.6565]
[1735683544962,0.30009,3338.5,3338.4,0.30008]
[1735683548169,2.11742513,3338.6,3338.5,0.30008]
[1735683548364,1.81734513,3338.9,3338.2,3.6565]
[1735683548571,3.2078,3339.0,3338.9,0.30005]
[1735683549464,3.50784,3339.0,3338.9,0.30005]
[1735683549667,3.2078,3339.4,3339.3,0.30001]
[1735683549868,2.35228939,3339.8,3339.7,0.29998]
[1735683550471,1.81734513,3340.0,3339.6,0.29999]
[1735683550767,1.81734513,3340.0,3339.9,3.50776]
[1735683551072,2.11729513,3340.0,3339.9,3.50776]
[1735683551668,2.11729513,3340.0,3339.9,0.29996]
[1735683551867,1.81734513,3340.0,3339.9,0.29996]
[1735683552269,1.81734513,3340.3,3339.5,3.2078]
[1735683552463,0.29991,3340.5,3340.4,0.29991]
[1735683553371,5.32504513,3340.6,3340.5,0.29991]
[1735683553573,5.02514513,3340.6,3340.1,0.8952]
[1735683553973,5.02514513,3340.6,3340.5,0.29991]
[1735683554669,0.29991,3340.5,3340.4,0.29991]
[1735683554875,2.11725513,3340.5,3340.4,0.29991]
[1735683556777,1.81734513,3340.5,3340.4,0.29991]
[1735683560969,3.2078,3340.6,3340.5,0.29991]
[1735683563474,3.2078,3341.1,3340.3,0.4656]
[1735683563679,3.50766,3341.1,3341.0,0.29986]
[1735683564277,0.76663,3341.4,3341.3,0.29983]
[1735683564480,0.76662,3341.4,3341.3,0.29983]
[1735683569675,1.17708,3341.8,3341.1,3.2078]
[1735683569676,2.11713513,3341.8,3341.7,0.2998]
[1735683571178,1.81734513,3341.8,3341.7,0.2998]
[1735683571378,2.11713513,3341.8,3341.7,0.2998]
[1735683573381,1.81734513,3341.8,3341.7,0.2998]
[1735683573582,2.11713513,3341.8,3341.7,0.2998]
[1735683573882,1.81734513,3341.8,3341.3,0.4584]
[1735683574084,2.11716513,3341.5,3341.4,0.29981]
[1735683575380,2.11716513,3341.5,3341.3,0.4584]
[1735683575381,1.81734513,3341.5,3341.3,0.4584]
[1735683575587,0.29982,3341.4,3341.3,0.75823]
[1735683576390,0.29982,3341.4,3341.3,0.29983]
[1735683576693,0.76552,3341.4,3341.3,0.29983]
[1735683579791,1.81734513,3341.5,3341.1,3.2078]
[1735683579987,2.11716513,3341.5,3341.4,0.29982]
[1735683581992,3.2078,3341.9,3341.1,3.2078]
[1735683582190,0.2998,3341.8,3341.7,0.29979]
[1735683582883,0.29978,3341.9,3341.8,0.29978]
[1735683586085,0.75168,3341.9,3341.8,0.29978]
[1735683590996,0.29978,3342.0,3341.9,0.29977]
[1735683594690,2.11711513,3342.1,3342.0,0.29977]
[1735683594892,1.81734513,3342.1,3342.0,0.29977]
[1735683595201,3.50755,3342.3,3342.2,0.29975]
[1735683596798,3.2078,3342.3,3342.2,0.29975]
[1735683596991,3.2078,3342.3,3342.2,0.75545]
[1735683597693,2.35228939,3342.5,3342.4,0.29973]
[1735683597896,2.11706513,3342.6,3342.2,1.20509]
[1735683598093,1.81734513,3342.6,3342.5,0.29973]
[1735683599500,2.11706513,3342.6,3342.5,0.29973]
[1735683599797,1.81734513,3342.6,3342.5,0.29973]
[1735683600699,2.11706513,3342.6,3342.5,0.29973]
[1735683601395,0.29974,3342.4,3342.3,0.29973]
[1735683602095,1.16694,3342.4,3342.3,0.29973]
[1735683603799,0.29975,3342.3,3342.2,0.29975]
[1735683604096,2.11709513,3342.3,3342.2,0.29975]
[1735683611300,1.81734513,3342.3,3341.8,4.69050686]
[1735683611506,1.81734513,3342.0,3341.8,4.69050686]
[1735683611706,0.29978,3341.9,3341.8,4.99028686]
[1735683612010,0.29978,3341.9,3341.8,4.69050686]
[1735683612211,0.75878,3341.9,3341.8,4.69050686]
[1735683612406,0.29979,3341.8,3341.7,4.99029686]
[1735683612605,0.29979,3341.8,3341.7,4.69050686]
[1735683612908,1.16819,3341.8,3341.7,4.69050686]
[1735683614207,3.22068939,3341.8,3341.6,0.2998]
[1735683614510,2.11714513,3341.7,3341.6,0.2998]
[1735683615513,1.81734513,3341.7,3341.6,0.2998]
[1735683615914,2.11714513,3341.7,3341.6,0.2998]
[1735683623510,2.35228939,3341.8,3341.7,0.2998]
[1735683624508,4.46940452,3342.0,3341.9,0.29978]
[1735683625913,2.11711513,3342.0,3341.9,0.29978]
[1735683627915,1.81734513,3342.0,3341.9,0.29978]
[1735683628714,2.11711513,3342.0,3341.9,0.29978]
[1735683628913,1.81734513,3342.0,3341.9,0.29978]
[1735683630316,1.81734513,3342.0,3341.9,4.99028686]
[1735683631316,0.29977,3342.1,3342.0,0.29977]